{"text_format":"2","workbook":"xlsx","n_sheets":2,"sheets":["Költségvetés főösszesítő","SZTE SZAKK IV.em.\"D-E\" szárny"],"not_rendered":{"charts":0,"images":0,"macros":0,"external_links":0,"defined_names":0,"comments":0,"pivot_tables":0},"unopened":[],"bounds":{"document_bytes":16777216,"sheet_cells":100000,"run_cost":"one","rows_first":2000,"rows_last":500,"rows_between":2000,"halvings":0,"cell_chars":16384,"cell_head_chars":4096},"cells_cut":0,"cells_raw":0,"read":"whole","date_system":"1900"}

{"sheet":"Költségvetés főösszesítő","index":0,"n_rows":22,"n_cols":6,"rows_kept":22,"cut":false,"hidden":false,"merged":[[14,0,14,6],[17,0,17,2],[18,0,19,2],[21,0,21,2],[16,3,17,4],[16,5,17,6],[21,3,21,4],[21,5,21,6],[20,0,20,2],[18,3,19,4],[20,3,20,4],[18,5,19,6],[20,5,20,6]]}
{"$rows_empty":14}
["Költségvetés főösszesítő (SZTE SZAKK 410 Ágyas Klinika IV.em./Idegsebészet/\"D-E\" szárny)"]
[]
[null,null,null,"Nettó ár (Ft)",null,"Bruttó ár (Ft)"]
[]
["Munkadíj, Oldalfali splitklímák leszerelése, Beüz.díj, sziv.vizsg., Érintésvédelmi jk., Karbantarási díj. (Ft)",null,null,{"$f":"SUM('SZTE SZAKK IV.em.\"D-E\" szárny'!F6*'SZTE SZAKK IV.em.\"D-E\" szárny'!G6+'SZTE SZAKK IV.em.\"D-E\" szárny'!F29*'SZTE SZAKK IV.em.\"D-E\" szárny'!G29+'SZTE SZAKK IV.em.\"D-E\" szárny'!F30*'SZTE SZAKK IV.em.\"D-E\" szárny'!G30+'SZTE SZAKK IV.em.\"D-E\" szárny'!F31*'SZTE SZAKK IV.em.\"D-E\" szárny'!G31+'SZTE SZAKK IV.em.\"D-E\" szárny'!F32*'SZTE SZAKK IV.em.\"D-E\" szárny'!G32+'SZTE SZAKK IV.em.\"D-E\" szárny'!F33*'SZTE SZAKK IV.em.\"D-E\" szárny'!G33)","v":0},null,{"$f":"SUM(D19*1.27)","v":0}]
[]
["Anyagár (Ft)",null,null,{"$f":"SUM('SZTE SZAKK IV.em.\"D-E\" szárny'!G7*'SZTE SZAKK IV.em.\"D-E\" szárny'!F7+'SZTE SZAKK IV.em.\"D-E\" szárny'!F8*'SZTE SZAKK IV.em.\"D-E\" szárny'!G8+'SZTE SZAKK IV.em.\"D-E\" szárny'!F9*'SZTE SZAKK IV.em.\"D-E\" szárny'!G9+'SZTE SZAKK IV.em.\"D-E\" szárny'!F10*'SZTE SZAKK IV.em.\"D-E\" szárny'!G10+'SZTE SZAKK IV.em.\"D-E\" szárny'!F11*'SZTE SZAKK IV.em.\"D-E\" szárny'!G11+'SZTE SZAKK IV.em.\"D-E\" szárny'!F12*'SZTE SZAKK IV.em.\"D-E\" szárny'!G12+'SZTE SZAKK IV.em.\"D-E\" szárny'!F13*'SZTE SZAKK IV.em.\"D-E\" szárny'!G13+'SZTE SZAKK IV.em.\"D-E\" szárny'!F14*'SZTE SZAKK IV.em.\"D-E\" szárny'!G14+'SZTE SZAKK IV.em.\"D-E\" szárny'!F15*'SZTE SZAKK IV.em.\"D-E\" szárny'!G15+'SZTE SZAKK IV.em.\"D-E\" szárny'!F16*'SZTE SZAKK IV.em.\"D-E\" szárny'!G16+'SZTE SZAKK IV.em.\"D-E\" szárny'!F17*'SZTE SZAKK IV.em.\"D-E\" szárny'!G17+'SZTE SZAKK IV.em.\"D-E\" szárny'!F18*'SZTE SZAKK IV.em.\"D-E\" szárny'!G18+'SZTE SZAKK IV.em.\"D-E\" szárny'!F19*'SZTE SZAKK IV.em.\"D-E\" szárny'!G19+'SZTE SZAKK IV.em.\"D-E\" szárny'!F20*'SZTE SZAKK IV.em.\"D-E\" szárny'!G20+'SZTE SZAKK IV.em.\"D-E\" szárny'!F21*'SZTE SZAKK IV.em.\"D-E\" szárny'!G21+'SZTE SZAKK IV.em.\"D-E\" szárny'!F22*'SZTE SZAKK IV.em.\"D-E\" szárny'!G22+'SZTE SZAKK IV.em.\"D-E\" szárny'!F23*'SZTE SZAKK IV.em.\"D-E\" szárny'!G23+'SZTE SZAKK IV.em.\"D-E\" szárny'!F24*'SZTE SZAKK IV.em.\"D-E\" szárny'!G24+'SZTE SZAKK IV.em.\"D-E\" szárny'!F25*'SZTE SZAKK IV.em.\"D-E\" szárny'!G25+'SZTE SZAKK IV.em.\"D-E\" szárny'!F26*'SZTE SZAKK IV.em.\"D-E\" szárny'!G26+'SZTE SZAKK IV.em.\"D-E\" szárny'!F27*'SZTE SZAKK IV.em.\"D-E\" szárny'!G27+'SZTE SZAKK IV.em.\"D-E\" szárny'!F28*'SZTE SZAKK IV.em.\"D-E\" szárny'!G28)","v":0},null,{"$f":"SUM(D21*1.27)","v":0}]
["Mindösszesen (Ft)",null,null,{"$f":"SUM(D19+D21)","v":0},null,{"$f":"SUM(F19:G21)","v":0}]

{"sheet":"SZTE SZAKK IV.em.\"D-E\" szárny","index":1,"n_rows":34,"n_cols":8,"rows_kept":34,"cut":false,"hidden":false,"merged":[[17,0,17,4],[18,0,18,4],[19,0,19,4],[23,0,23,4],[24,0,24,4],[20,0,20,4],[21,0,21,4],[22,0,22,4],[25,0,25,4],[26,0,26,4],[27,0,27,4],[33,7,34,7],[28,0,28,4],[29,0,29,4],[31,0,31,4],[32,0,32,4],[33,0,34,5],[33,6,34,6],[30,0,30,4],[12,0,12,4],[13,0,13,4],[14,0,14,4],[15,0,15,4],[16,0,16,4],[11,0,11,4],[10,0,10,4],[0,0,1,7],[3,0,4,4],[3,5,4,5],[3,6,4,6],[3,7,4,7],[6,0,6,4],[7,0,7,4],[8,0,8,4],[9,0,9,4],[5,0,5,4]]}
["SZTE SZAKK (410 Ágyas Klinika IV. em. /Idegsebészet/”D-E” szárny) VRF rendszer kialakítása. (CSAK nettó ár \"G\" cellát szükséges kitöltelni!!!"]
[]
[]
["Megnevezés",{"$nulls":4},"Darabszám/Készlet/kg/fm","Nettó egységár (Ft)","Bruttó egységár (Ft)"]
[]
["Oldalfali beltéri egységek leszerelése",{"$nulls":4},10,null,{"$f":"SUM(G6*1.27)","v":0}]
["Kültéri egység (Midea MV6-i335WV2GN1 33,5 kW)",{"$nulls":4},2,null,{"$f":"SUM(G7*1.27)","v":0}]
["Oldalfali beltéri egység (Midea MI2-22GDN 2,2 kW)",{"$nulls":4},24,null,{"$f":"SUM(G8*1.27)","v":0}]
["Oldalfali beltéri egység (Midea MI2-36GDN 3,6 kW)",{"$nulls":4},8,null,0]
["Vezetékes távszabályzó (Midea WDC-86E/KD) ",{"$nulls":4},32,null,0]
["Központi vezérlő (Midea CCM-180A/WS)",{"$nulls":4},2,null,0]
["FQZHN-01D osztóidom",{"$nulls":4},28,null,0]
["FQZHN-03D osztóidom",{"$nulls":4},2,null,0]
["N2 Száraz 10m3",{"$nulls":4},12,null,0]
["Hűtőközeg (R-410 A) (kg)",{"$nulls":4},10,null,0]
["Tisztított klíma rézcső Ø28x1,5mm",{"$nulls":4},30,null,0]
["Tisztított klíma rézcső Ø12x1,5mm",{"$nulls":4},30,null,0]
["Tisztított klíma rézcső Ø10x1,5mm",{"$nulls":4},30,null,0]
["Tisztított klíma rézcső Ø6x1,5mm",{"$nulls":4},30,null,0]
["Csőhéj Ø28x19mm",{"$nulls":4},30,null,0]
["Csőhéj Ø12x19mm",{"$nulls":4},30,null,0]
["Csőhéj Ø10x19mm",{"$nulls":4},30,null,0]
["Csőhéj Ø 6x13mm",{"$nulls":4},30,null,0]
["Mosóanyag csőrendszer mosásához",{"$nulls":4},2,null,0]
["HL golyósszifon",{"$nulls":4},20,null,0]
["Cseppvíz hálózat kiépítés",{"$nulls":4},300,null,0]
["Szerelési anyagok (elektromos betápálálás kiép. kült. Egységeknek)",{"$nulls":4},2,null,0]
["VRF kültéri tartóállvány",{"$nulls":4},2,null,0]
["Érintésvédelmi jegyzőkönyv",{"$nulls":4},2,null,0]
["Szivárgási vizsgálat dokumentáció kész. (dwg)",{"$nulls":4},2,null,0]
["Komplett karbantartás a kültéri- és beltéri egységeken a garancia lejárátáig 6 alkalommal (2 db/félév)",{"$nulls":4},12,null,0]
["Beüzemelési díj ",{"$nulls":4},2,null,0]
["Munkadíj VRV",{"$nulls":4},2,null,0]
["Mindösszesen ",{"$nulls":5},{"$f":"SUM(F6*G6+G7*F7+G8*F8+F10*G10+G9*F9+G11*F11+G12*F12+G13*F13+G14*F14+G15*F15+G16*F16+G17*F17+G18*F18+G19*F19+G20*F20+G21*F21+G22*F22+G23*F23+G24*F24+G25*F25+G26*F26+G27*F27+G28*F28+G30*F30+F31*G31+G32*F32+G33*F33+G29*F29)","v":0},{"$f":"SUM(G34*1.27)","v":0}]